fUSD/lending_fUSD_20240523
["ID","MTS","AMOUNT","RATE_DAILY","PERIOD"]
[327814150,1716499851919,-500.0,0.00022739,2]
[327814151,1716499851929,-198.44516639,0.00022739,2]
[327814152,1716499851938,-500.0,0.00022739,2]
[327814153,1716499851947,-500.0,0.00022739,2]
[327814154,1716499851956,-500.0,0.00022739,2]
[327814155,1716499851966,-500.0,0.00022739,2]
[327814156,1716499851975,-1069.08,0.00022739,2]
[327814157,1716499851984,-434.25,0.00022739,2]
[327814158,1716499851994,-500.0,0.00022739,2]
[327814159,1716499852003,-500.0,0.00022739,2]
[327814160,1716499852012,-500.0,0.00022739,2]
[327814161,1716499852021,-500.0,0.00022739,2]
[327814162,1716499852031,-1053.43,0.00022739,2]
[327814163,1716499852040,-500.0,0.00022739,2]
[327814164,1716499852050,-500.0,0.00022739,2]
[327814165,1716499852059,-500.0,0.00022739,2]
[327814166,1716499852068,-500.0,0.00022739,2]
[327814167,1716499852077,-666.42,0.00022739,2]
[327814168,1716499852087,-1420.1,0.00022739,2]
[327814169,1716499852096,-500.0,0.00022739,2]
[327814170,1716499852108,-500.0,0.00022739,2]
[327814171,1716499852117,-500.0,0.00022739,2]
[327814173,1716499852127,-500.0,0.00022739,2]
[327814174,1716499852136,-500.0,0.00022739,2]
[327814175,1716499852146,-500.0,0.00022739,2]
[327814176,1716499852155,-500.0,0.00022739,2]
[327814177,1716499852164,-500.0,0.00022739,2]
[327814178,1716499852174,-500.0,0.00022739,2]
[327814179,1716499852183,-500.0,0.00022739,2]
[327814180,1716499852192,-500.0,0.00022739,2]
[327814181,1716499852201,-2669.87,0.00022739,2]
[327814182,1716499852211,-500.0,0.00022739,2]
[327814183,1716499852220,-535.3,0.00022739,2]
[327814184,1716499852229,-454.03,0.00022739,2]
[327814185,1716499852239,-500.0,0.00022739,2]
[327814186,1716499852248,-500.0,0.00022739,2]
[327814187,1716499852257,-500.0,0.00022739,2]
[327814188,1716499852267,-794.74,0.00022739,2]
[327814189,1716499852277,-2760.06,0.00022739,2]
[327814190,1716499852286,-154.23828543,0.0002277,2]
[327814191,1716499852296,-250.0,0.00022788,2]
[327814192,1716499852305,-154.56503789,0.00022802,2]
[327814193,1716499852315,-163.03342871,0.00022824,2]
[327814194,1716499852325,-500.0,0.00022888,2]
[327814195,1716499852336,-151.0,0.00022893,3]
[327814196,1716499852345,-1300.0,0.000229,8]
[327814197,1716499852354,-884.8,0.00022923,2]
[327814198,1716499852366,-154.87112492,0.00022941,2]
[327814199,1716499852376,-500.0,0.00022999,2]
[327814200,1716499852385,-229.21,0.00022999,2]
[327814201,1716499852395,-800.0,0.00023,2]
[327814202,1716499852405,-161.44222683,0.00023011,2]
[327814203,1716499852415,-500.0,0.00023013,2]
[327814204,1716499852424,-371.60098759,0.00023013,2]
[327814205,1716499852434,-545.94451239,0.00023013,2]
[327814206,1716499852443,-500.0,0.00023013,2]
[327814207,1716499852453,-500.0,0.00023013,2]
[327814208,1716499852462,-500.0,0.00023013,2]
[327814209,1716499852472,-181.04,0.00023013,2]
[327814210,1716499852484,-500.0,0.00023013,2]
[327814211,1716499852493,-500.0,0.00023013,2]
[327814212,1716499852503,-500.0,0.00023013,2]
[327814213,1716499852512,-500.0,0.00023013,2]
[327814214,1716499852522,-500.0,0.00023013,2]
[327814215,1716499852532,-500.0,0.00023013,2]
[327814216,1716499852542,-500.0,0.00023013,2]
[327814217,1716499852553,-500.0,0.00023013,2]
[327814218,1716499852563,-500.0,0.00023013,2]
[327814219,1716499852572,-155.30454673,0.00023013,2]
[327814220,1716499852582,-500.0,0.00023013,2]
[327814221,1716499852591,-226.96344603,0.00023013,2]
[327814223,1716499852604,-273.03655397,0.00023013,2]
[327814224,1716499852616,-595.05125184,0.00023013,2]
[327814225,1716499852626,-15.95770315,0.00023013,2]
[327814226,1716499852638,-484.04229685,0.00023013,2]
[327814227,1716499852647,-500.0,0.00023013,2]
[327814228,1716499852656,-500.0,0.00023013,2]
[327814229,1716499852667,-312.50350108,0.00023013,2]
[327814230,1716499852676,-500.0,0.00023013,2]
[327814231,1716499852686,-161.35580052,0.00023013,2]
[327814232,1716499852696,-500.0,0.00023013,2]
[327814233,1716499852705,-500.0,0.00023013,2]
[327814234,1716499852714,-500.0,0.00023013,2]
[327814235,1716499852724,-500.0,0.00023013,2]
[327814236,1716499852734,-500.0,0.00023013,2]
[327814237,1716499852744,-500.0,0.00023013,2]
[327814238,1716499852756,-625.31,0.00023013,2]
[327814239,1716499852765,-500.0,0.00023013,2]
[327814240,1716499852774,-500.0,0.00023013,2]
[327814241,1716499852785,-205.21009177,0.00023013,2]
[327814242,1716499852794,-500.0,0.00023013,2]
[327814243,1716499852803,-44.86652273,0.00023013,2]
[327814244,1716499852816,-455.13347727,0.00023013,2]
[327814245,1716499852826,-500.0,0.00023013,2]
[327814246,1716499852835,-500.0,0.00023013,2]
[327814247,1716499852844,-185.63095321,0.00023013,2]
[327814248,1716499852854,-500.0,0.00023013,2]
[327814249,1716499852866,-200.5783967,0.00023013,2]
[327814250,1716499852878,-299.4216033,0.00023013,2]
[327814251,1716499852888,-36.7033967,0.00023013,2]
[327814252,1716499852992,-500.0,0.00021717,2]
[327814253,1716499853002,-477.01941567,0.00021917,2]
[327814254,1716499853014,-40.00058433,0.00021917,2]
[327814255,1716499853024,-463.2966033,0.00023013,2]
[327814256,1716499853033,-402.43052994,0.00023013,2]
[327814257,1716499853045,-97.56947006,0.00023013,2]
[327814258,1716499853054,-500.0,0.00023013,2]
[327814259,1716499853063,-520.89392777,0.00023013,2]
[327814260,1716499853072,-500.0,0.00023013,2]
[327814261,1716499853082,-500.0,0.00023013,2]
[327814262,1716499853091,-500.0,0.00023013,2]
[327814263,1716499853100,-500.0,0.00023013,2]
[327814264,1716499853111,-500.0,0.00023013,2]
[327814265,1716499853120,-500.0,0.00023013,2]
[327814266,1716499853129,-500.0,0.00023013,2]
[327814267,1716499853139,-500.0,0.00023013,2]
[327814268,1716499853148,-500.0,0.00023013,2]
[327814269,1716499853158,-272.26,0.00023013,2]
[327814270,1716499853167,-500.0,0.00023013,2]
[327814272,1716499853323,-500.0,0.00023013,2]
[327814273,1716499853334,-500.0,0.00023013,2]
[327814274,1716499853344,-355.40482482,0.00023013,2]
[327814275,1716499853353,-500.0,0.00023013,2]
[327814276,1716499853365,-500.0,0.00023013,2]
[327814277,1716499853374,-500.0,0.00023013,2]
[327814278,1716499853383,-500.0,0.00023013,2]
[327814279,1716499853392,-500.0,0.00023013,2]
[327814280,1716499853402,-500.0,0.00023013,2]
[327814281,1716499853411,-500.0,0.00023013,2]
[327814282,1716499853421,-500.0,0.00023013,2]
[327814283,1716499853430,-500.0,0.00023013,2]
[327814284,1716499853440,-500.0,0.00023013,2]
[327814285,1716499853449,-1853.04,0.00023013,2]
[327814286,1716499853459,-500.0,0.00023013,2]
[327814287,1716499853468,-497.71173327,0.00023013,2]
[327814288,1716499853478,-947.35,0.00023013,2]
[327814289,1716499853487,-500.0,0.00023013,2]
[327814290,1716499853497,-500.0,0.00023013,2]
[327814291,1716499853506,-191.16,0.00023013,2]
[327814292,1716499853515,-500.0,0.00023013,2]
[327814293,1716499853525,-500.0,0.00023013,2]
[327814294,1716499853534,-500.0,0.00023013,2]
[327814295,1716499853545,-500.0,0.00023013,2]
[327814296,1716499853554,-500.0,0.00023013,2]
[327814297,1716499853563,-500.0,0.00023013,2]
[327814298,1716499853572,-641.05,0.00023013,2]
[327814299,1716499853582,-500.0,0.00023013,2]
[327814300,1716499853591,-500.0,0.00023013,2]
[327814301,1716499853601,-601.16,0.00023013,2]
[327814302,1716499853612,-227.81,0.00023013,2]
[327814303,1716499853622,-500.0,0.00023013,2]
[327814304,1716499853632,-500.0,0.00023013,2]
[327814305,1716499853641,-500.0,0.00023013,2]
[327814306,1716499853651,-247.41,0.00023013,2]
[327814307,1716499853660,-500.0,0.00023013,2]
[327814308,1716499853669,-1424.71,0.00023013,2]
[327814309,1716499853678,-500.0,0.00023013,2]
[327814310,1716499853687,-500.0,0.00023013,2]
[327814311,1716499853697,-622.33,0.00023013,2]
[327814312,1716499853706,-500.0,0.00023013,2]
[327814313,1716499853715,-500.0,0.00023013,2]
[327814314,1716499853725,-500.0,0.00023013,2]
[327814315,1716499853735,-500.0,0.00023013,2]
[327814316,1716499853749,-500.0,0.00023013,2]
[327814317,1716499853759,-500.0,0.00023013,2]
[327814318,1716499853768,-700.01,0.00023013,2]
[327814319,1716499853778,-500.0,0.00023013,2]
[327814320,1716499853787,-500.0,0.00023013,2]
[327814321,1716499853797,-500.0,0.00023013,2]
[327814322,1716499853807,-500.0,0.00023013,2]
[327814323,1716499853816,-500.0,0.00023013,2]
[327814324,1716499853827,-500.0,0.00023013,2]
[327814325,1716499853837,-500.0,0.00023013,2]
[327814326,1716499853847,-500.0,0.00023013,2]
[327814327,1716499853856,-500.0,0.00023013,2]
[327814328,1716499853867,-592.29,0.00023013,2]
[327814329,1716499853877,-500.0,0.00023013,2]
[327814330,1716499853886,-500.0,0.00023013,2]
[327814331,1716499853896,-500.0,0.00023013,2]
[327814332,1716499853905,-500.0,0.00023013,2]
[327814333,1716499853913,-500.0,0.00023013,2]
[327814334,1716499853923,-500.0,0.00023013,2]
[327814335,1716499853933,-500.0,0.00023013,2]
[327814336,1716499853943,-500.0,0.00023013,2]
[327814337,1716499853952,-617.56,0.00023013,2]
[327814338,1716499853962,-603.78,0.00023013,2]
[327814339,1716499853972,-500.0,0.00023013,2]
[327814340,1716499853981,-500.0,0.00023013,2]
[327814341,1716499853990,-500.0,0.00023013,2]
[327814342,1716499853999,-817.42,0.00023013,2]
[327814343,1716499854009,-513.83,0.00023013,2]
[327814344,1716499854018,-500.0,0.00023013,2]
[327814345,1716499854027,-303.92,0.00023013,2]
[327814346,1716499854036,-500.0,0.00023013,2]
[327814347,1716499854045,-568.24,0.00023013,2]
[327814348,1716499854055,-500.0,0.00023013,2]
[327814349,1716499854065,-500.0,0.00023013,2]
[327814350,1716499854075,-500.0,0.00023013,2]
[327814351,1716499854084,-1257.65,0.00023013,2]
[327814352,1716499854094,-1470.88,0.00023013,2]
[327814353,1716499854104,-500.0,0.00023013,2]
[327814354,1716499854115,-500.0,0.00023013,2]
[327814355,1716499854124,-500.0,0.00023013,2]
[327814356,1716499854134,-500.0,0.00023013,2]
[327814357,1716499854143,-500.0,0.00023013,2]
[327814358,1716499854152,-500.0,0.00023013,2]
[327814359,1716499854162,-500.0,0.00023013,2]
[327814360,1716499854171,-500.0,0.00023013,2]
[327814361,1716499854181,-500.0,0.00023013,2]
[327814362,1716499854190,-500.0,0.00023013,2]
[327814363,1716499854199,-500.0,0.00023013,2]
[327814364,1716499854209,-500.0,0.00023013,2]
[327814365,1716499854218,-500.0,0.00023013,2]
[327814366,1716499854228,-1069.08,0.00023013,2]
[327814367,1716499854237,-500.0,0.00023013,2]
[327814368,1716499854247,-500.0,0.00023013,2]
[327814369,1716499854256,-500.0,0.00023013,2]
[327814370,1716499854266,-500.0,0.00023013,2]
[327814371,1716499854276,-500.0,0.00023013,2]
[327814372,1716499854286,-1053.43,0.00023013,2]
[327814373,1716499854296,-500.0,0.00023013,2]
[327814374,1716499854305,-500.0,0.00023013,2]
[327814375,1716499854315,-500.0,0.00023013,2]
[327814376,1716499854325,-666.42,0.00023013,2]
[327814377,1716499854335,-1420.1,0.00023013,2]
[327814378,1716499854344,-500.0,0.00023013,2]
[327814379,1716499854354,-535.36457016,0.00023013,2]
[327814380,1716499854368,-500.0,0.00023013,2]
[327814381,1716499854378,-500.0,0.00023013,2]
[327814382,1716499854387,-500.0,0.00023013,2]
[327814383,1716499854397,-500.0,0.00023013,2]
[327814384,1716499854407,-500.0,0.00023013,2]
[327814385,1716499854417,-500.0,0.00023013,2]
[327814386,1716499854427,-500.0,0.00023013,2]
[327814387,1716499854437,-500.0,0.00023013,2]
[327814388,1716499854446,-2669.87,0.00023013,2]
[327814389,1716499854456,-500.0,0.00023013,2]
[327814390,1716499854465,-535.3,0.00023013,2]
[327814391,1716499854474,-181.68,0.00023013,2]
[327814392,1716499854484,-500.0,0.00023013,2]
[327814393,1716499854493,-500.0,0.00023013,2]
[327814394,1716499854503,-794.74,0.00023013,2]
[327814395,1716499854512,-2760.06,0.00023013,2]
[327814396,1716499854521,-154.23828543,0.00023022,2]
[327814397,1716499854530,-160.107484,0.00023036,2]
[327814398,1716499854539,-155.07639621,0.00023042,2]
[327814399,1716499854549,-158.32580983,0.00023101,2]
[327814400,1716499854558,-196.3614232,0.00023187,2]
[327814401,1716499854567,-10000.0,0.00023187,2]
[327814402,1716499854577,-163.89479298,0.00023205,2]
[327814403,1716499854586,-155.07639621,0.00023209,2]
[327814404,1716499854598,-152.67145463,0.00023224,2]
[327814405,1716499854610,-500.0,0.00023287,2]
[327814406,1716499854619,-546.81878576,0.00023287,2]
[327814407,1716499854628,-500.0,0.00023287,2]
[327814408,1716499854642,-500.0,0.00023287,2]
[327814409,1716499854651,-500.0,0.00023287,2]
[327814410,1716499854661,-500.0,0.00023287,2]
[327814411,1716499854670,-500.0,0.00023287,2]
[327814412,1716499854679,-500.0,0.00023287,2]
[327814413,1716499854688,-500.0,0.00023287,2]
[327814414,1716499854697,-500.0,0.00023287,2]
[327814415,1716499854706,-500.0,0.00023287,2]
[327814416,1716499854715,-500.0,0.00023287,2]
[327814417,1716499854725,-500.0,0.00023287,2]
[327814418,1716499854735,-500.0,0.00023287,2]
[327814419,1716499854745,-605.04981825,0.00023287,2]
[327814420,1716499854756,-500.0,0.00023287,2]
[327814421,1716499854766,-500.0,0.00023287,2]
[327814422,1716499854775,-571.89953978,0.00023287,2]
[327814423,1716499854785,-581.52,0.00023287,2]
[327814424,1716499854794,-500.0,0.00023287,2]
[327814425,1716499854803,-500.0,0.00023287,2]
[327814426,1716499854814,-500.0,0.00023287,2]
[327814427,1716499854826,-500.0,0.00023287,2]
[327814428,1716499854836,-500.0,0.00023287,2]
[327814429,1716499854845,-500.0,0.00023287,2]
[327814430,1716499854855,-500.0,0.00023287,2]
[327814431,1716499854866,-500.0,0.00023287,2]
[327814432,1716499854876,-500.0,0.00023287,2]
[327814433,1716499854885,-500.0,0.00023287,2]
[327814434,1716499854895,-500.0,0.00023287,2]
[327814435,1716499854904,-500.0,0.00023287,2]
[327814436,1716499854914,-590.31,0.00023287,2]
[327814437,1716499854923,-500.0,0.00023287,2]
[327814438,1716499854933,-500.0,0.00023287,2]
[327814439,1716499854942,-347.87435043,0.00023287,2]
[327814440,1716499854952,-500.0,0.00023287,2]
[327814441,1716499854961,-526.62,0.00023287,2]
[327814442,1716499854971,-500.0,0.00023287,2]
[327814443,1716499854981,-500.0,0.00023287,2]
[327814444,1716499854990,-500.0,0.00023287,2]
[327814445,1716499855000,-474.95,0.00023287,2]
[327814446,1716499855009,-500.0,0.00023287,2]
[327814447,1716499855019,-500.0,0.00023287,2]
[327814448,1716499855029,-500.0,0.00023287,2]
[327814449,1716499855039,-500.0,0.00023287,2]
[327814450,1716499855048,-500.0,0.00023287,2]
[327814451,1716499855058,-500.0,0.00023287,2]
[327814452,1716499855067,-500.0,0.00023287,2]
[327814453,1716499855076,-500.0,0.00023287,2]
[327814454,1716499855086,-500.0,0.00023287,2]
[327814455,1716499855095,-500.0,0.00023287,2]
[327814456,1716499855105,-500.0,0.00023287,2]
[327814457,1716499855118,-500.0,0.00023287,2]
[327814458,1716499855128,-500.0,0.00023287,2]
[327814459,1716499855138,-500.0,0.00023287,2]
[327814460,1716499855147,-500.0,0.00023287,2]
[327814461,1716499855157,-500.0,0.00023287,2]
[327814462,1716499855167,-1853.04,0.00023287,2]
[327814463,1716499855177,-437.22,0.00023287,2]
[327814464,1716499855186,-947.35,0.00023287,2]
[327814465,1716499855196,-500.0,0.00023287,2]
[327814466,1716499855205,-500.0,0.00023287,2]
[327814467,1716499855214,-500.0,0.00023287,2]
[327814468,1716499855224,-500.0,0.00023287,2]
[327814469,1716499855233,-500.0,0.00023287,2]
[327814470,1716499855243,-500.0,0.00023287,2]
[327814471,1716499855252,-509.3,0.00023287,2]
[327814472,1716499855262,-500.0,0.00023287,2]
[327814473,1716499855271,-641.05,0.00023287,2]
[327814474,1716499855281,-500.0,0.00023287,2]
[327814475,1716499855290,-413.80431762,0.00023287,2]
[327814476,1716499855300,-500.0,0.00023287,2]
[327814478,1716499855310,-179.51833135,0.00023287,2]
[327814479,1716499855325,-320.48166865,0.00023287,2]
[327814480,1716499855335,-69.84891917,0.00023287,2]
[327814481,1716499855347,-430.15108083,0.00023287,2]
[327814482,1716499855356,-500.0,0.00023287,2]
[327814483,1716499855367,-1424.71,0.00023287,2]
[327814484,1716499855377,-500.0,0.00023287,2]
[327814485,1716499855386,-500.0,0.00023287,2]
[327814486,1716499855396,-622.33,0.00023287,2]
[327814487,1716499855405,-500.0,0.00023287,2]
[327814488,1716499855415,-500.0,0.00023287,2]
[327814489,1716499855424,-500.0,0.00023287,2]
[327814490,1716499855433,-500.0,0.00023287,2]
[327814491,1716499855443,-500.0,0.00023287,2]
[327814492,1716499855452,-284.43080099,0.00023287,2]
[327814493,1716499855470,-889.01,0.00022455,3]
[327814494,1716499855479,-275.79354773,0.00023287,2]
[327814495,1716499855490,-700.01,0.00023287,2]
[327814496,1716499855500,-22.68645225,0.00023287,2]
[327814497,1716499855512,-477.31354775,0.00023287,2]
[327814498,1716499855522,-6.56364408,0.00023287,2]
[327814499,1716499855534,-296.26673161,0.00023287,2]
[327814500,1716499855545,-197.16962431,0.00023287,2]
[327814501,1716499855555,-500.0,0.00023287,2]
[327814502,1716499855565,-500.0,0.00023287,2]
[327814503,1716499855575,-500.0,0.00023287,2]
[327814504,1716499855584,-500.0,0.00023287,2]
[327814505,1716499855594,-500.0,0.00023287,2]
[327814506,1716499855604,-500.0,0.00023287,2]
[327814507,1716499855616,-500.0,0.00023287,2]
[327814508,1716499855625,-500.0,0.00023287,2]
[327814509,1716499855635,-500.0,0.00023287,2]
[327814510,1716499855645,-500.0,0.00023287,2]
[327814511,1716499855654,-500.0,0.00023287,2]
[327814512,1716499855663,-500.0,0.00023287,2]
[327814513,1716499855673,-500.0,0.00023287,2]
[327814514,1716499855684,-500.0,0.00023287,2]
[327814515,1716499855694,-500.0,0.00023287,2]
[327814516,1716499855703,-617.56,0.00023287,2]
[327814517,1716499855713,-500.0,0.00023287,2]
[327814518,1716499855723,-500.0,0.00023287,2]
[327814519,1716499855733,-500.0,0.00023287,2]
[327814520,1716499855743,-817.42,0.00023287,2]
[327814521,1716499855756,-500.0,0.00023287,2]
[327814522,1716499855766,-500.0,0.00023287,2]
[327814523,1716499855775,-500.0,0.00023287,2]
[327814524,1716499855786,-568.24,0.00023287,2]
[327814525,1716499855795,-500.0,0.00023287,2]
[327814526,1716499855804,-500.0,0.00023287,2]
[327814527,1716499855814,-1470.88,0.00023287,2]
[327814528,1716499855824,-1257.65,0.00023287,2]
[327814529,1716499855835,-500.0,0.00023287,2]
[327814530,1716499855846,-500.0,0.00023287,2]
[327814531,1716499855856,-500.0,0.00023287,2]
[327814532,1716499855868,-500.0,0.00023287,2]
[327814533,1716499855878,-500.0,0.00023287,2]
[327814534,1716499855887,-500.0,0.00023287,2]
[327814535,1716499855896,-500.0,0.00023287,2]
[327814536,1716499855905,-500.0,0.00023287,2]
[327814537,1716499855915,-500.0,0.00023287,2]
[327814538,1716499855924,-500.0,0.00023287,2]
[327814539,1716499855934,-194.43,0.00023287,2]
[327814540,1716499855943,-500.0,0.00023287,2]
[327814541,1716499855953,-546.2080359,0.00023287,2]
[327814542,1716499855963,-1069.08,0.00023287,2]
[327814543,1716499855973,-500.0,0.00023287,2]
[327814544,1716499855983,-500.0,0.00023287,2]
[327814545,1716499855993,-500.0,0.00023287,2]
[327814546,1716499856002,-500.0,0.00023287,2]
[327814547,1716499856012,-500.0,0.00023287,2]
[327814548,1716499856021,-1053.43,0.00023287,2]
[327814549,1716499856031,-500.0,0.00023287,2]
[327814550,1716499856040,-500.0,0.00023287,2]
[327814551,1716499856049,-500.0,0.00023287,2]
[327814552,1716499856058,-666.42,0.00023287,2]
[327814553,1716499856067,-1420.1,0.00023287,2]
[327814554,1716499856076,-500.0,0.00023287,2]
[327814555,1716499856086,-500.0,0.00023287,2]
[327814556,1716499856096,-500.0,0.00023287,2]
[327814557,1716499856105,-500.0,0.00023287,2]
[327814558,1716499856117,-500.0,0.00023287,2]
[327814559,1716499856127,-500.0,0.00023287,2]
[327814560,1716499856136,-500.0,0.00023287,2]
[327814561,1716499856146,-500.0,0.00023287,2]
[327814562,1716499856155,-500.0,0.00023287,2]
[327814563,1716499856164,-2507.55390947,0.00023287,2]
[327814564,1716499856177,-162.31609053,0.00023287,2]
[327814565,1716499856186,-143.9017004,0.00023287,2]
[327814566,1716499856655,376.94077743,0.0001974,2]
[327814568,1716499856741,900.0,0.00014805,2]
[327814569,1716499856817,298.96189554,0.0001974,2]
[327814572,1716499866076,1039.20687623,0.0001974,2]
[327814574,1716499868608,2605.01235126,0.00019345,2]
[327814575,1716499868928,292.31595914,0.0001974,2]
[327814576,1716499870969,500.0,0.0001974,2]
[327814577,1716499872584,155.0,0.0001974,2]
[327814578,1716499873582,445.32504803,0.0002,2]
[327814579,1716499874833,1043.64061414,0.0001974,2]
[327814580,1716499877470,9026.87060412,0.0001974,2]
[327814583,1716499883279,37475.68633145,0.0001974,2]
[327814584,1716499886514,268.39295994,0.0001974,2]
[327814585,1716499936898,155.0,0.0002,2]
[327814588,1716499982492,150.0,0.00019725,2]
[327814589,1716500002017,1000.0,0.00030212,120]
[327814590,1716500014411,157.88,0.00013973,2]
[327814591,1716500024323,2370439.59020848,0.00013,2]
[327814592,1716500024369,35255.27192269,0.00013,2]
[327814593,1716500024396,170588.56775283,0.00013,2]
[327814595,1716500085453,185.36,0.00025842,120]
[327814598,1716500195277,1137107.8003538,0.00013,2]
[327814665,1716500356229,167.63,0.00015641,2]
[327814666,1716500485013,151.06,0.00013973,2]
[327814667,1716500661297,-1163.27,0.00017262,2]
[327814670,1716500776698,252.29285456,0.00016925,2]
[327814765,1716500970697,-242.36,0.00018547,2]
[327814766,1716500970720,-1478.52,0.00018565,2]
[327814767,1716500970744,-250.0,0.00018585,2]
[327814768,1716500970767,-2382.76684544,0.00018586,2]
[327814769,1716501032655,-368.23315456,0.00018586,2]
[327814772,1716501032666,-23900.0,0.00018603,2]
[327814774,1716501032675,-500.0,0.00018621,2]
[327814775,1716501032685,-894.36,0.00018636,2]
[327814780,1716501032694,-150.0,0.00018696,2]
[327814784,1716501032703,-7920.56,0.00018696,2]
[327814788,1716501032712,-9500.0,0.00018701,2]
[327814791,1716501032721,-5574.67,0.00018707,2]
[327814794,1716501032731,-250.0,0.00018737,2]
[327814797,1716501032741,-200.0,0.00018738,2]
[327814799,1716501032750,-1391.85,0.00018956,2]
[327814800,1716501032760,-309.452495,0.0001909,2]
[327814801,1716501032770,-114371.7847933,0.00019091,2]
[327814802,1716501032780,-299.99,0.00019091,4]
[327814803,1716501032790,-5979.27,0.00019092,2]
[327814804,1716501032799,-192.0,0.0001918,2]
[327814805,1716501032809,-508.07,0.00019236,2]
[327814806,1716501032818,-508.07,0.00019288,2]
[327814807,1716501032827,-508.07,0.00019341,2]
[327814808,1716501032837,-150.0,0.0001937,2]
[327814809,1716501032846,-884.887276,0.00019392,2]
[327814810,1716501032856,-508.07,0.00019394,2]
[327814811,1716501032866,-2363.82,0.00019394,2]
[327814812,1716501032875,-508.07,0.00019447,2]
[327814813,1716501032884,-508.07,0.00019499,2]
[327814814,1716501032894,-1163.27,0.00019526,2]
[327814815,1716501032904,-508.07,0.00019552,2]
[327814816,1716501032913,-499.99,0.00019576,2]
[327814817,1716501032923,-508.07,0.00019605,2]
[327814818,1716501032932,-935.92,0.00019641,2]
[327814819,1716501032942,-508.07,0.00019658,2]
[327814820,1716501032951,-508.07,0.0001971,2]
[327814821,1716501032960,-11267.53966864,0.00019752,2]
[327814822,1716501032969,-508.07,0.00019763,2]
[327814823,1716501032978,-175.33,0.00019772,2]
[327814824,1716501032987,-508.07,0.00019816,2]
[327814825,1716501032996,-508.07,0.00019869,2]
[327814826,1716501033006,-508.07,0.00019922,2]
[327814827,1716501033015,-508.07,0.00019974,2]
[327814828,1716501033024,-508.07,0.00020027,2]
[327814829,1716501033034,-508.07,0.0002008,2]
[327814830,1716501033044,-508.07,0.00020133,2]
[327814831,1716501033053,-508.07,0.00020185,2]
[327814832,1716501033063,-238.21561096,0.00020216,2]
[327814833,1716501033072,-155.0,0.00020216,2]
[327814834,1716501033081,-508.07,0.00020238,2]
[327814835,1716501033091,-98411.8231413,0.00020267,2]
[327814836,1716501033100,-1808.14442913,0.00020355,2]
[327814837,1716501033111,-576.97713249,0.00020455,2]
[327814838,1716501033125,-185.36,0.00020673,2]
[327814839,1716501033135,-4166.4434,0.000207,2]
[327814840,1716501033146,-1000.0,0.000207,2]
[327814841,1716501033157,-16097.8746,0.000208,2]
[327814842,1716501033166,-3709.2317,0.000208,2]
[327814843,1716501033175,-17564.734,0.000208,2]
[327814844,1716501033184,-38231.1643,0.000209,2]
[327814845,1716501033195,-1880.21127232,0.000209,2]
[327814846,1716501033279,-2431.57926396,0.000209,2]